bitfinex/quotes_ETHUSD_20251226
["timestamp","ask_amount","ask_price","bid_price","bid_amount"]
[1766722632951,0.9428,2960.8,2960.2,0.886]
[1766722633648,0.9428,2960.8,2960.1,0.887]
[1766722634244,0.9428,2960.8,2960.2,0.0337815]
[1766722635333,0.9428,2960.8,2960.3,3.378036]
[1766722635633,0.9428,2960.8,2960.4,0.03377921]
[1766722636025,3.41290746,2961.1,2960.4,0.03377921]
[1766722636220,0.9771,2961.0,2960.4,0.03377921]
[1766722636543,0.002,2961.1,2960.5,6.631166]
[1766722636711,0.002,2961.2,2960.6,0.91977693]
[1766722637319,0.9791,2961.2,2960.6,0.91977693]
[1766722637534,0.9791,2961.2,2960.6,4.69343892]
[1766722638144,0.9791,2961.2,2960.6,4.72721585]
[1766722638349,0.9791,2961.2,2960.6,4.69343892]
[1766722639120,0.9791,2961.2,2960.6,3.80743892]
[1766722639428,0.9791,2961.2,2960.6,4.69343892]
[1766722639725,0.9791,2961.2,2960.7,0.46934389]
[1766722640330,0.9791,2961.1,2960.7,0.46934389]
[1766722644621,1.01087252,2961.0,2960.4,0.001]
[1766722644953,0.9771,2960.8,2960.4,0.001]
[1766722648362,1.01087252,2960.7,2960.1,0.001]
[1766722648537,0.9771,2960.5,2960.1,0.001]
[1766722651249,1.01087252,2960.5,2960.1,0.001]
[1766722651559,0.9771,2960.5,2960.1,0.001]
[1766722653842,1.01087252,2960.5,2960.1,0.001]
[1766722655547,0.9771,2960.5,2960.1,0.001]
[1766722655752,0.9771,2960.4,2960.1,0.001]
[1766722656753,0.9771,2960.4,2960.0,0.001]
[1766722657556,1.01087252,2960.3,2960.0,0.001]
[1766722660064,1.01087252,2960.3,2959.4,4.152072]
[1766722660065,0.9771,2960.2,2959.4,4.152072]
[1766722660383,0.9771,2960.0,2959.4,4.26505045]
[1766722660562,0.9771,2960.0,2959.5,3.37894448]
[1766722662772,0.9771,2960.0,2959.4,4.26501693]
[1766722662956,0.9771,2960.0,2959.4,3.37901693]
[1766722664303,0.9771,2960.0,2959.5,0.03378949]
[1766722664662,0.9771,2960.0,2959.6,3.37883497]
[1766722665003,0.9771,2960.0,2959.7,0.0337872]
[1766722665680,0.9771,2960.0,2959.5,3.37990761]
[1766722665884,0.9771,2960.0,2959.5,4.0559063]
[1766722666389,0.9771,2960.0,2959.6,0.03378834]
[1766722668390,0.9771,2960.0,2959.5,0.001]
[1766722668583,0.9771,2960.0,2959.4,2.468133]
[1766722668584,0.9637,2959.8,2959.4,2.468133]
[1766722668782,0.9637,2959.8,2959.3,0.001]
[1766722669295,0.9637,2959.6,2959.3,0.001]
[1766722670399,0.9637,2958.9,2957.7,0.001]
[1766722670574,0.9637,2958.7,2957.2,0.886]
[1766722670893,0.9637,2958.3,2957.7,25.248784]
[1766722671094,0.9637,2958.9,2957.9,23.203646]
[1766722671271,0.9637,2958.7,2957.9,23.203646]
[1766722671472,0.9637,2958.5,2957.6,2.436]
[1766722671678,0.9637,2958.8,2957.6,2.436]
[1766722671991,0.9637,2958.6,2957.6,2.436]
[1766722672363,1.00595114,2958.5,2957.6,2.436]
[1766722672559,1.00595114,2958.5,2957.8,23.284009]
[1766722673879,1.00595114,2958.5,2958.1,0.001]
[1766722674598,0.9637,2958.5,2958.1,0.001]
[1766722674967,1.00594542,2958.9,2958.1,0.887]
[1766722675169,0.9637,2958.9,2958.1,0.887]
[1766722675783,1.00594685,2958.8,2958.1,4.26747792]
[1766722677588,0.9637,2958.8,2958.1,4.26747792]
[1766722678467,4.34349445,2958.8,2958.1,0.001]
[1766722678694,0.9637,2958.6,2958.1,0.001]
[1766722678881,0.9637,2958.4,2957.7,0.887]
[1766722679195,0.9637,2958.2,2957.7,0.887]
[1766722680263,0.9637,2958.2,2957.7,0.85487648]
[1766722680468,0.9637,2958.2,2957.7,4.2358806]
[1766722680691,0.9637,2958.2,2958.0,0.001]
[1766722685176,0.9637,2958.2,2957.7,3.34986841]
[1766722687409,0.9637,2958.2,2957.7,4.11166695]
[1766722690707,0.9637,2958.2,2957.7,4.99866695]
[1766722693719,0.9637,2958.2,2957.7,1.64879854]
[1766722694317,0.9637,2958.2,2957.7,5.02977974]
[1766722694619,0.9637,2958.2,2957.7,1.64879854]
[1766722694915,0.9637,2958.2,2957.6,3.38106781]
[1766722694916,0.97535685,2958.1,2957.6,3.38105004]
[1766722695115,0.9331,2958.4,2957.7,3.38100132]
[1766722695315,0.9331,2958.4,2957.8,0.73693578]
[1766722697522,0.9331,2958.4,2957.8,4.11782235]
[1766722701609,0.97535399,2958.3,2957.4,13.363822]
[1766722701929,0.97535399,2958.3,2957.7,4.85486]
[1766722702114,0.97535399,2958.3,2957.8,0.001]
[1766722702320,0.97535399,2958.3,2957.3,0.887]
[1766722702321,0.97535399,2958.3,2957.3,3.38141836]
[1766722702532,0.97535399,2958.3,2956.9,0.001]
[1766722702729,0.9331,2958.1,2957.1,0.887]
[1766722702927,0.9331,2957.9,2957.2,5.64850253]
[1766722703229,0.97536114,2957.8,2957.3,2.511358]
[1766722703436,0.9331,2957.8,2957.3,2.511358]
[1766722703636,0.9331,2957.8,2957.4,7.117862]
[1766722704009,0.9331,2957.8,2957.1,0.887]
[1766722704401,0.9331,2957.8,2957.2,3.38152627]
[1766722704602,0.9331,2957.8,2957.2,4.26852627]
[1766722705433,0.9331,2957.8,2957.3,2.455752]
[1766722706207,0.9331,2957.8,2957.2,4.26852627]
[1766722708931,0.9331,2957.8,2957.4,4.109312]
[1766722710136,0.9331,2957.8,2957.4,3.617312]
[1766722712034,0.9331,2957.8,2957.3,3.3814559]
[1766722712238,0.9331,2957.8,2957.4,2.805312]
[1766722718552,0.9331,2957.8,2957.3,3.3814559]
[1766722718743,0.9331,2957.8,2957.4,0.001]
[1766722732570,0.9629,2957.7,2957.4,0.001]
[1766722739999,3.38249269,2958.2,2957.4,0.001]
[1766722740000,0.9649,2958.2,2957.4,0.001]
[1766722740558,0.002,2958.4,2957.5,28.594973]
[1766722740760,0.002,2958.4,2957.6,24.497394]
[1766722741118,0.002,2958.4,2957.8,16.065978]
[1766722741795,0.002,2958.4,2957.8,6.7617824]
[1766722742098,0.9649,2958.4,2957.4,0.001]
[1766722742280,0.9629,2958.2,2957.5,4.26816963]
[1766722742503,0.9629,2958.0,2957.5,4.26816963]
[1766722743390,0.9629,2958.0,2957.6,3.38109558]
[1766722745108,0.9629,2958.0,2957.5,5.03325023]
[1766722747692,0.9629,2958.0,2957.5,4.14625023]
[1766722748010,0.9629,2958.0,2957.5,0.887]
[1766722748318,0.9629,2958.0,2957.5,4.26823213]
[1766722748997,0.9629,2958.2,2957.6,0.03381119]
[1766722751194,0.9629,2958.2,2957.6,3.41484414]
[1766722751622,0.9629,2958.2,2957.6,3.38103295]
[1766722751825,0.002,2958.3,2957.7,20.03133129]
[1766722752123,0.002,2958.3,2957.8,4.891978]
[1766722754128,0.002,2958.3,2957.9,3.3807769]
[1766722754730,0.002,2958.4,2958.0,0.03380662]
[1766722755092,0.002,2958.4,2957.9,3.3807769]
[1766722755286,0.002,2958.4,2958.0,0.70996948]
[1766722756408,0.002,2958.4,2958.0,4.09061249]
[1766722763826,0.002,2958.4,2958.0,4.05680587]
[1766722765733,0.002,2958.4,2958.1,0.03380548]
[1766722765904,0.002,2958.4,2958.1,3.41430269]
[1766722766226,0.96982373,2958.4,2958.0,0.001]
[1766722766427,0.9276,2958.4,2958.0,0.001]
[1766722766927,0.9276,2958.4,2958.0,3.38161254]
[1766722768039,0.9276,2958.4,2958.0,0.001]
[1766722770107,0.9256,2958.8,2958.0,0.001]
[1766722770307,0.04422373,2959.0,2958.1,23.506296]
[1766722770507,0.04422373,2959.0,2958.1,20.733999]
[1766722771239,0.96982373,2959.0,2958.2,5.95512734]
[1766722771442,0.96982373,2959.0,2958.2,0.92080434]
[1766722772443,0.96982373,2959.0,2958.3,3.38031977]
[1766722773239,0.96982373,2959.0,2958.4,0.03380205]
[1766722773444,0.96982373,2959.0,2958.3,3.38031977]
[1766722773832,0.96982373,2959.0,2958.2,1.08982252]
[1766722773833,0.9256,2958.9,2958.2,1.08982252]
[1766722774022,0.04222373,2958.8,2958.2,4.26741991]
[1766722774219,0.04222373,2958.8,2958.3,0.03380319]
[1766722774420,0.04222373,2958.8,2958.4,3.38020551]
[1766722774623,0.9256,2958.9,2958.4,3.38020551]
[1766722775249,0.04422373,2959.0,2958.4,3.38020551]
[1766722775445,0.002,2959.0,2958.4,3.38020551]
[1766722775622,0.9276,2959.0,2958.4,3.38020551]
[1766722775824,0.04222373,2958.9,2958.5,0.67604965]
[1766722776023,0.04222373,2958.9,2958.4,3.38020551]
[1766722776435,0.04222373,2958.9,2958.3,6.76061072]
[1766722776629,0.9276,2959.0,2958.3,6.76061072]
[1766722776835,0.002,2959.0,2958.4,0.03380205]
[1766722777031,0.96782373,2959.3,2958.4,0.03380205]
[1766722777235,0.96782373,2959.3,2958.5,0.67944128]
[1766722777436,0.96782373,2959.3,2958.6,0.03379977]
[1766722777852,0.002,2959.4,2958.5,0.67944128]
[1766722778049,0.002,2959.6,2958.7,27.901814]
[1766722778254,0.002,2959.6,2958.6,4.87914774]
[1766722778457,0.002,2959.6,2958.9,6.75926864]
[1766722779426,0.9276,2959.6,2958.9,6.75926864]
[1766722780751,0.002,2959.6,2958.8,6.75949708]
[1766722780954,0.002,2959.6,2959.0,3.496292]
[1766722781152,0.002,2959.6,2959.1,0.03379405]
[1766722781326,0.002,2959.6,2959.2,0.03379291]
[1766722781654,0.002,2959.6,2958.8,14.13139336]
[1766722781655,0.002,2959.6,2959.0,24.092483]
[1766722781854,0.002,2959.6,2959.1,2.44642198]
[1766722782065,0.002,2959.6,2959.1,0.03379405]
[1766722782360,1.7889,2960.0,2959.0,20.293012]
[1766722782565,1.7889,2960.0,2959.1,0.03379405]
[1766722782779,1.7889,2960.0,2959.2,0.03379291]
[1766722782942,0.9019,2959.9,2959.3,3.3791775]
[1766722783257,0.9019,2959.9,2959.0,3.3794936]
[1766722783463,0.9019,2959.9,2959.0,3.37947903]
[1766722783464,0.9019,2959.8,2959.0,3.37947903]
[1766722784659,0.9019,2959.8,2959.1,3.37940169]
[1766722785070,0.9019,2959.8,2958.9,4.267967]
[1766722785235,0.9019,2959.8,2959.0,0.0337952]
[1766722785436,0.9019,2959.8,2959.1,0.43017622]
[1766722785737,0.9019,2959.8,2958.9,13.795723]
[1766722786266,0.9019,2959.8,2958.9,13.232749]
[1766722786755,0.9019,2959.8,2958.9,10.185673]
[1766722787863,0.9342,2959.7,2958.7,0.5558589]
[1766722788169,0.9342,2959.7,2958.7,3.3798038]
[1766722788661,0.9342,2959.7,2958.8,3.37972204]
[1766722788832,0.9342,2959.7,2958.9,6.79302373]
[1766722789032,0.9342,2959.7,2958.9,6.75922739]
[1766722789267,0.9342,2959.7,2959.0,0.70971794]
[1766722790366,0.002,2959.8,2959.0,0.70971794]
[1766722790367,0.002,2959.8,2959.1,3.3794059]
[1766722790665,0.002,2959.8,2959.2,0.03379291]
[1766722792263,0.002,2959.8,2959.2,3.41299716]
[1766722794092,0.9362,2959.8,2959.2,0.03379291]
[1766722794276,0.9342,2959.6,2959.0,3.3795201]
[1766722795584,0.9342,2959.6,2958.9,3.37958201]
[1766722796894,0.9342,2959.6,2959.0,0.001]
[1766722799911,0.9342,2959.5,2959.0,0.001]
[1766722800987,0.9362,2959.8,2959.0,0.001]
[1766722801183,1.11642,2959.7,2959.0,3.3805201]
[1766722801688,1.11642,2959.7,2959.0,3.4143153]
[1766722802001,0.9342,2959.7,2959.0,6.7938354]
[1766722802191,0.002,2959.8,2959.0,6.7600402]
[1766722802501,0.002,2959.8,2959.0,6.7938354]
[1766722802679,0.9362,2959.8,2959.0,6.7938354]
[1766722803278,0.9362,2959.8,2959.0,6.7600402]
[1766722803478,0.9362,2959.8,2959.1,0.03379405]
[1766722804401,0.9362,2959.8,2959.0,4.14522412]
[1766722805110,0.9362,2959.7,2959.0,4.14522412]
[1766722806307,0.9362,2959.7,2959.0,3.3805201]
[1766722807584,0.9362,2959.7,2959.0,0.001]
[1766722807982,0.002,2959.7,2959.0,0.001]
[1766722809085,0.9362,2959.7,2959.0,0.001]
[1766722809409,0.9362,2959.7,2959.0,0.0347952]
[1766722809605,0.9362,2959.7,2959.1,3.3794059]
[1766722809999,0.9342,2959.6,2959.0,0.001]
[1766722810198,0.9342,2959.5,2959.0,0.001]
[1766722810512,0.9342,2959.5,2958.4,0.001]
[1766722810884,0.44185332,2959.6,2958.4,0.001]
[1766722810885,0.9342,2959.3,2958.4,0.001]
[1766722811085,0.9342,2959.1,2958.4,0.001]
[1766722811285,0.9342,2958.9,2958.0,3.38165181]
[1766722811686,0.9342,2958.8,2958.0,3.38165181]
[1766722813183,0.9342,2958.8,2958.0,0.001]
[1766722813914,0.9775,2958.7,2958.0,0.001]
[1766722816290,0.9775,2958.9,2958.0,0.03480662]
[1766722816488,0.9775,2958.9,2958.1,4.67177931]
[1766722816708,0.9775,2958.9,2958.1,0.67963157]
[1766722817209,0.9775,2958.9,2958.0,0.001]
[1766722818100,0.9775,2958.7,2958.0,0.001]
[1766722821408,4.35739327,2958.7,2958.0,0.001]
[1766722821607,0.9775,2958.6,2958.0,0.001]
[1766722825228,0.9775,2958.6,2958.0,3.3816626]
[1766722825524,0.9775,2958.6,2958.1,0.03380548]
[1766722827214,0.9775,2958.6,2958.1,3.41430575]
[1766722828628,0.9775,2958.6,2958.1,0.03380548]
[1766722828796,0.9775,2958.6,2958.0,3.38166089]
[1766722831241,0.9775,2958.6,2958.1,0.03380548]
[1766722831527,0.9775,2958.6,2958.0,0.001]
[1766722833695,0.9775,2958.6,2958.0,0.03480662]
[1766722833901,0.9775,2958.6,2958.0,0.80324266]
[1766722835831,0.9775,2958.6,2958.0,0.76943604]
[1766722836015,0.9775,2958.6,2958.0,0.001]
[1766722836201,0.9775,2958.6,2958.0,0.03480662]
[1766722836405,3.37998933,2958.6,2958.0,0.001]
[1766722836603,0.9775,2958.5,2958.0,0.001]
[1766722841230,0.9775,2958.5,2958.0,0.03480662]
[1766722842029,0.9775,2958.5,2958.0,3.41545372]
[1766722842256,0.9795,2958.7,2958.0,7.56454668]
[1766722842428,0.9795,2958.7,2958.0,7.53074006]
[1766722842660,0.9795,2958.7,2958.1,0.03380548]
[1766722846856,0.9795,2958.7,2958.0,0.03480662]
[1766722848078,0.9795,2958.7,2958.0,3.41544852]
[1766722850480,0.9795,2958.7,2958.0,4.18387017]
[1766722851278,3.38186694,2958.7,2958.0,0.80322827]
[1766722851499,0.9742,2958.6,2958.0,0.03480662]
[1766722852294,0.9742,2958.6,2958.0,3.4154213]
[1766722852599,0.9742,2958.6,2958.0,0.001]
[1766722855367,3.37999522,2958.6,2958.0,0.001]
[1766722855560,0.9742,2958.5,2958.0,0.001]
[1766722861980,0.9742,2958.5,2958.0,0.79986466]
[1766722862304,0.9762,2958.7,2958.0,0.79986466]
[1766722863298,0.9762,2958.7,2958.0,4.18041397]
[1766722867520,0.9762,2958.7,2958.0,7.56107657]
[1766722867699,0.9762,2958.7,2958.1,0.84480766]
[1766722867882,0.9762,2958.7,2958.2,0.03380434]
[1766722873778,0.002,2958.7,2958.2,6.7946691]
[1766722874080,4.28640676,2959.4,2958.3,23.106208]
[1766722874401,0.9073,2959.4,2958.4,3.87370728]
[1766722874712,0.9073,2959.4,2958.6,30.0]
[1766722874893,0.9073,2959.4,2958.8,3.37974854]
[1766722875076,0.9073,2959.4,2958.9,0.03379634]
[1766722875403,0.9073,2959.4,2958.9,0.92079634]
[1766722875601,0.9073,2959.4,2959.0,1.16732356]
[1766722875802,0.9073,2959.4,2959.1,0.03379405]
[1766722876003,0.9073,2959.6,2959.1,0.03379405]
[1766722877881,0.9073,2959.6,2959.1,3.4131823]
[1766722878314,0.9073,2959.6,2959.1,0.03379405]
[1766722878509,0.9073,2959.6,2959.2,0.4580582]
[1766722879081,0.9093,2959.6,2959.2,0.4580582]
[1766722880048,0.002,2959.6,2959.2,0.4580582]
[1766722881380,0.9093,2959.6,2959.2,0.4580582]
[1766722883202,0.002,2959.6,2959.2,3.83732665]
[1766722883379,0.002,2959.6,2959.3,0.42090384]
[1766722885011,0.002,2959.6,2959.3,3.80007114]
[1766722885514,0.002,2959.6,2959.3,0.42090384]
[1766722885691,0.9093,2959.6,2959.0,4.26644907]
[1766722885890,0.9093,2959.6,2959.0,0.887]
[1766722886209,0.9093,2959.6,2958.9,4.26657961]
[1766722886618,0.9093,2959.6,2959.0,3.37950882]
[1766722887314,0.9093,2959.6,2959.0,4.14413455]
[1766722892826,0.9093,2959.6,2959.0,0.76462573]
[1766722893135,0.9093,2959.6,2959.0,3.37948709]
[1766722894927,0.9093,2959.6,2958.9,6.75926111]
[1766722895931,0.9093,2959.6,2959.1,3.98925257]
[1766722898226,0.9093,2959.6,2959.2,0.03379291]
[1766722898434,0.9093,2959.6,2959.1,7.36864421]
[1766722899204,0.9093,2959.6,2959.2,0.03379291]
[1766722900629,0.002,2959.7,2959.3,3.98925257]
[1766722902131,0.002,2959.6,2959.2,4.00637219]
[1766722902432,0.002,2959.6,2959.3,0.03379177]
[1766722904012,0.002,2959.6,2959.1,7.99571196]
[1766722905136,0.95636887,2959.7,2959.2,0.03379291]
[1766722906865,0.95636887,2959.7,2959.1,7.99571196]
[1766722908723,0.95836887,2959.7,2959.2,0.03379291]
[1766722909623,0.95836887,2959.7,2959.2,3.4130819]
[1766722909924,0.95836887,2959.7,2959.2,4.55397685]
[1766722911047,0.95836887,2959.7,2959.2,1.17468786]
[1766722911348,0.002,2959.7,2959.2,5.2091782]
[1766722911547,0.002,2959.7,2959.2,1.82988786]
[1766722911725,0.9374,2959.7,2959.2,1.82988786]
[1766722911919,0.9374,2959.7,2959.3,0.91984861]
[1766722913240,0.002,2959.8,2959.5,3.98925257]
[1766722913547,0.002,2959.8,2959.3,4.9541766]
[1766722913751,0.9374,2959.8,2959.3,1.57504861]
[1766722914819,0.9374,2959.8,2959.3,4.95422355]
[1766722915019,0.9374,2959.8,2959.4,0.49542236]
[1766722915470,0.002,2959.8,2959.5,0.6552]
[1766722917253,0.002,2959.8,2959.5,0.68898949]
[1766722917948,0.002,2959.9,2959.6,0.6532]
[1766722918249,0.002,2959.9,2959.7,0.0337872]
[1766722919348,0.002,2959.9,2959.7,0.40659192]
[1766722919548,0.002,2959.9,2959.4,4.52763155]
[1766722920063,0.9374,2959.9,2959.4,2.03562236]
[1766722920271,0.9374,2959.9,2959.4,5.41467957]
[1766722920552,0.9374,2959.9,2959.1,0.001]
[1766722920553,0.9374,2959.9,2959.1,0.6542]
[1766722920744,0.9354,2959.8,2959.1,0.001]
[1766722922055,0.9354,2959.6,2959.1,0.001]
[1766722929064,0.9354,2959.6,2958.8,3.37965473]
[1766722929065,0.9354,2959.7,2958.9,0.03379634]
[1766722929234,0.9354,2959.6,2958.9,0.03379634]
[1766722930060,0.9354,2959.6,2959.0,3.3795201]
[1766722930947,0.9354,2959.6,2959.0,3.4133153]
[1766722932541,0.9354,2959.6,2959.1,0.03379405]
[1766722934274,0.9354,2959.6,2959.0,3.4133153]
[1766722934476,0.9354,2959.6,2959.0,3.3795201]
[1766722934970,0.9354,2959.6,2959.1,0.03379405]
[1766722937685,0.9074,2959.5,2959.0,0.0337952]
[1766722938370,0.9074,2959.5,2959.0,3.4133052]
[1766722938765,0.9074,2959.5,2959.0,3.4143052]
[1766722939679,0.9074,2959.5,2959.0,0.0347952]
[1766722939858,0.9074,2959.5,2959.0,0.001]
[1766722942480,0.9074,2959.5,2959.0,0.0347952]
[1766722945779,0.9094,2959.5,2959.0,3.41430377]
[1766722946572,0.9094,2959.5,2959.0,0.0347952]
[1766722946776,0.9094,2959.5,2959.0,0.001]
[1766722947682,0.9094,2959.5,2959.0,0.0347952]
[1766722948488,0.9094,2959.5,2959.0,3.41431387]
[1766722951586,0.9094,2959.5,2959.0,7.44903397]
[1766722951792,0.9094,2959.5,2959.0,4.03571867]
[1766722955998,0.9094,2959.5,2959.1,0.03379405]
[1766722956489,0.9094,2959.5,2959.1,0.74491433]
[1766722956690,0.002,2959.5,2959.1,0.74491433]
[1766722956890,0.002,2959.5,2959.1,0.77870838]
[1766722957189,0.9074,2959.7,2959.2,0.6532]
[1766722957496,0.002,2959.8,2959.3,4.06616585]
[1766722957700,0.002,2959.8,2959.3,0.68699177]
[1766722958779,0.002,2959.8,2959.3,4.06615242]
[1766722958992,0.002,2959.8,2959.3,4.06615983]
[1766722959195,0.002,2959.8,2959.3,0.68699177]
[1766722960502,0.002,2959.8,2959.3,1.50604576]
[1766722962979,0.002,2959.8,2959.3,1.47225399]
[1766722963185,0.9094,2959.8,2959.1,4.03254702]
[1766722963502,0.9094,2959.8,2959.2,3.37928395]
[1766722964085,0.9094,2959.8,2959.2,4.03248395]
[1766722966313,0.9094,2959.8,2959.2,0.6532]
[1766722967709,0.9094,2959.8,2959.1,4.26638881]
[1766722968008,0.9094,2959.8,2959.1,5.09640766]
[1766722973509,0.9094,2959.8,2959.1,4.20940766]
[1766722974706,0.9691,2959.7,2959.0,3.38047215]
[1766722974906,0.9691,2959.7,2959.1,3.41318659]
[1766722975712,0.9691,2959.7,2959.1,0.03379405]
[1766722975915,0.9691,2959.7,2959.1,3.41318646]
[1766722978917,0.9691,2959.7,2959.1,0.03379405]
[1766722980819,0.9711,2959.7,2959.1,0.03379405]
[1766722981515,0.9711,2959.7,2959.1,3.41319829]
[1766722983219,0.9711,2959.7,2959.1,0.03379405]
[1766722983419,1.00291778,2959.6,2959.0,0.001]
[1766722983714,1.00291778,2959.6,2959.0,3.38050751]
[1766722983917,1.00291778,2959.6,2959.1,3.41318005]
[1766722984628,1.00291778,2959.6,2959.1,0.03379405]
[1766722984840,0.9691,2959.5,2959.1,0.03379405]
[1766722985156,0.9691,2959.5,2959.1,3.37940327]
[1766722987804,0.03581778,2959.7,2959.2,0.03379291]
[1766722988006,1.00491778,2959.7,2959.2,0.03379291]
[1766722988303,1.00491778,2959.7,2959.1,3.41319732]
[1766722988694,1.00491778,2959.7,2959.1,0.03379405]
[1766722988913,0.9691,2959.6,2959.1,0.03379405]
[1766722989326,0.002,2959.5,2959.1,0.03379405]
[1766722991225,0.002,2959.5,2959.1,3.41319243]
[1766722992337,0.002,2959.5,2959.1,0.03379405]
[1766722995152,0.002,2959.5,2957.3,9.84138587]
[1766722995153,0.9207,2959.4,2958.5,1.00291778]
[1766722995358,0.002,2959.5,2958.0,4.10339068]
[1766722995359,0.9207,2959.2,2958.0,4.10339068]
[1766722995543,0.9207,2959.0,2958.1,0.7218]
[1766722995859,0.9207,2959.0,2958.0,0.001]
[1766722995860,0.9207,2958.8,2958.0,0.001]
[1766722996173,0.9207,2958.4,2957.5,0.001]
[1766722996489,0.9207,2958.2,2957.5,0.001]
[1766722996626,0.9207,2958.0,2957.5,0.001]
[1766722996817,0.04225971,2957.9,2957.5,0.001]
[1766722997017,0.9207,2957.9,2957.5,0.001]
[1766722998622,0.96295399,2958.3,2957.6,0.7238]
[1766722998832,0.9207,2958.3,2957.7,0.74070757]
[1766722999925,0.9207,2958.3,2957.7,4.12163097]
[1766723000247,0.9207,2958.3,2957.8,0.7238]
[1766723001051,0.9207,2958.3,2957.9,0.01690415]
[1766723001348,0.04225114,2958.5,2957.9,0.01690415]
[1766723001557,0.96295114,2958.5,2957.9,0.74070415]
[1766723002854,0.96295114,2958.5,2957.9,4.12146093]
[1766723004556,0.96295114,2958.5,2957.9,3.39766093]
[1766723004757,0.002,2958.3,2958.0,0.7238]
[1766723006555,0.9227,2958.3,2957.9,0.01690415]
[1766723006752,0.96295542,2958.2,2957.8,0.001]
[1766723007049,0.96295542,2958.2,2957.5,0.001]
[1766723008032,0.96295542,2958.2,2957.5,3.3822297]
[1766723008239,0.96295542,2958.2,2957.6,3.39794061]
[1766723008556,0.96295542,2958.2,2957.6,0.01691043]
[1766723008755,0.96295542,2958.2,2957.5,0.001]
[1766723009528,1.39748228,2958.2,2957.5,0.001]
[1766723009728,0.9207,2958.1,2957.5,0.001]
[1766723009940,0.96295828,2958.0,2957.5,0.001]
[1766723011641,0.96295828,2958.0,2957.4,0.001]
[1766723011846,0.9606,2957.9,2957.2,0.001]
[1766723012174,0.9606,2957.7,2957.2,0.001]
[1766723012377,0.9606,2957.5,2957.2,0.001]
[1766723012748,0.9606,2957.5,2957.4,0.001]
[1766723015241,0.9606,2957.5,2956.8,0.7278]
[1766723015447,0.9606,2957.3,2956.8,4.10977565]
[1766723015751,0.9606,2957.3,2956.9,3.38192021]
[1766723020075,0.9606,2957.3,2956.8,4.11078167]
[1766723020580,0.9606,2957.3,2956.8,0.001]
[1766723021687,0.04426685,2957.4,2956.8,0.001]
[1766723021688,1.00286971,2957.2,2956.8,0.001]
[1766723022361,1.44149643,2957.2,2956.8,0.001]
[1766723022566,1.00286971,2957.2,2956.8,0.001]
[1766723023278,1.00486685,2957.4,2956.8,0.0179356]
[1766723024486,1.00486685,2957.4,2956.8,3.39991059]
[1766723025389,1.00486685,2957.4,2956.8,4.12771059]
[1766723025587,1.00486685,2957.4,2956.8,0.7457356]
[1766723025788,1.60495011,2957.4,2956.8,0.7457356]
[1766723026664,0.64435011,2957.4,2956.8,0.7457356]
[1766723026882,0.9153,2957.3,2956.8,0.7457356]
[1766723028090,0.9153,2957.3,2956.8,4.12774485]
[1766723033389,0.002,2957.4,2956.9,0.7278]
[1766723033593,0.002,2957.4,2957.0,0.01692988]
[1766723033796,0.04426685,2957.4,2957.0,0.7278]
[1766723034496,0.04426685,2957.4,2957.0,0.74472873]
[1766723035091,0.04426685,2957.4,2957.0,0.7278]
[1766723039272,0.04426685,2957.4,2957.0,4.10957956]
[1766723039679,0.04426685,2957.4,2956.8,3.38303125]
[1766723039680,0.9093,2957.3,2956.8,0.001]
[1766723039890,0.9093,2957.1,2956.8,0.001]
[1766723041197,4.29106306,2957.1,2956.8,0.001]
[1766723041400,0.9093,2957.0,2956.6,0.001]
[1766723041899,0.04226971,2957.2,2956.7,0.7288]
[1766723042208,0.9093,2957.2,2956.6,0.001]
[1766723042412,0.95156971,2957.2,2956.6,0.5009277]
[1766723042592,0.95156971,2957.2,2956.6,0.001]
[1766723043388,0.9093,2957.1,2956.6,0.001]
[1766723045500,4.29110588,2957.0,2956.6,0.001]
[1766723045689,0.9093,2957.0,2956.6,0.001]
[1766723046092,0.9093,2957.0,2956.3,0.001]
[1766723046296,6.76346758,2957.1,2956.3,0.001]
[1766723046297,0.9093,2956.8,2956.3,0.001]
[1766723046508,0.04227686,2956.7,2956.3,0.001]
[1766723047389,0.95157686,2956.7,2956.5,0.001]
[1766723047593,0.95157686,2956.7,2956.3,0.001]
[1766723050014,0.9093,2956.6,2956.2,0.001]
[1766723050526,0.9093,2956.5,2956.1,0.887]
[1766723050889,0.9093,2956.4,2956.1,0.887]
[1766723051088,0.9093,2956.4,2956.0,0.20637597]
[1766723052184,0.9093,2956.7,2956.2,4.74593849]
[1766723052388,0.9093,2956.9,2956.3,0.7497]
[1766723052598,0.95157543,2956.8,2956.0,0.95607597]
[1766723052897,0.95157543,2956.8,2956.0,0.20637597]
[1766723054524,0.9101,2956.6,2956.0,0.20637597]
[1766723054824,0.9101,2956.4,2956.0,0.20637597]
[1766723055352,0.9101,2956.4,2956.0,0.20737597]
[1766723058406,0.04227829,2956.6,2956.0,3.59032484]
[1766723058625,0.9101,2956.6,2956.0,0.20737597]
[1766723058934,4.2923764,2956.6,2956.0,0.70270742]
[1766723059635,0.9101,2956.6,2956.0,0.70270742]
[1766723059809,0.9101,2956.6,2956.0,1.45240742]
[1766723061438,0.95237972,2956.5,2956.0,0.20737597]
[1766723062429,0.04227972,2956.5,2956.1,0.7497]
[1766723062633,0.9101,2956.8,2956.1,0.7497]
[1766723062634,0.04227686,2956.7,2956.1,0.7497]
[1766723062934,0.04227686,2956.7,2956.1,4.13253386]
[1766723062935,0.95237686,2956.7,2956.1,4.13253386]
[1766723063333,1.38581122,2956.7,2956.1,4.13253386]
[1766723063536,0.9101,2956.6,2956.1,0.7497]
[1766723064449,0.9101,2956.6,2956.1,4.13252874]
[1766723065645,0.9101,2956.6,2956.1,7.51536423]
[1766723066246,0.9101,2956.6,2956.1,4.13252874]
[1766723067648,0.952374,2956.9,2956.2,0.7497]